Cogmind - Beta 10.2 @@@ ROGUE MODE // 2020.11.08 @ 09:19:34 // Halloween2020/ForbiddenLore Player: GamerShanksi Result: Destroyed by as-74732 with Assembled Heavy Rifle Performance ------------- Evolutions (0) 0 Regions Visited (2) 400 Robots Destroyed (13) 65 Value Destroyed (396) 396 Prototype IDs (0) 0 Alien Tech Used (0) 0 Bonus (0) 0 TOTAL SCORE: 861 Bonus ------- None Cogmind --------- Core Integrity 0/250 Matter 181/300 Energy 87/100 System Corruption 1% Temperature Cool (5) Movement Core (200) Ox3 Location -10/Mines Parts ------- > --- POWER (1) -------- (None) > --- PROPULSION (2) --- (None) > --- UTILITY (2) ------ Structural Scanner Signal Interpreter > --- WEAPON (2) ------- Bore Cannon > --- INVENTORY (4) ---- High-capacity Battery (400) Utility Shielding Heavy EM Pulse Gun Assault Rifle Peak State ------------ > --- POWER ------------ (None) > --- PROPULSION ------- (None) > --- UTILITY ---------- Structural Scanner Signal Interpreter > --- WEAPON ----------- Heavy Assault Rifle Bore Cannon > --- INVENTORY -------- High-capacity Battery Utility Shielding Heavy EM Pulse Gun Assault Rifle [Rating: 9] Favorites ----------- Power Light Ion Engine Engine Light Ion Engine Propulsion Aluminum Leg Leg Aluminum Leg Hover Unit Hover Unit Utility Signal Interpreter Device Structural Scanner Storage Small Storage Unit Processor Signal Interpreter Weapon Heavy Assault Rifle Energy Gun EM Pulse Gun Ballistic Gun Heavy Assault Rifle Ballistic Cannon Bore Cannon Launcher Grenade Launcher Build | -11 -10 -10 ------- Run | Scr Mat Min Slots Evolved . | . . . Power . | . . . Propulsion . | . . . Utility . | . . . Weapon . | . . . Parts Attached 23 | 5 17 1 Power 3 | 1 2 . Engine 3 | 1 2 . Core . | . . . Reactor . | . . . Propulsion 7 | 2 5 . Treads . | . . . Leg 6 | 2 4 . Wheel . | . . . Hover 1 | . 1 . Flight . | . . . Utility 3 | 1 2 . Device 1 | . 1 . Storage 1 | 1 . . Processor 1 | . 1 . Hackware . | . . . Protection . | . . . Artifact . | . . . Weapon 10 | 1 8 1 Energy Gun 1 | . 1 . Energy Cannon . | . . . Ballistic Gun 6 | 1 5 . Ballistic Cannon 1 | . . 1 Launcher 2 | . 2 . Special Weapon . | . . . Impact Weapon . | . . . Slashing Weapon . | . . . Piercing Weapon . | . . . Special Melee Weapon . | . . . Unidentified Prototypes . | . . . Parts Lost 8 | . 5 3 Power 1 | . 1 . Propulsion 3 | . 2 1 Utility . | . . . Weapon 4 | . 2 2 Highest Loss Streak 3 | . 2 3 Average Slot Usage (%) 78 | . 80 68 Engine 5 | . 6 . Leg 18 | . 21 . Hover 4 | . 2 12 Device 7 | . 7 14 Processor 13 | . 13 14 Energy Gun 1 | . 2 . Ballistic Gun 18 | . 18 14 Launcher 6 | . 5 11 Naked Turns . | . . . Heaviest Build 13 | 10 10 13 Greatest Support 20 | 20 20 6 Greatest Overweight (x) 4 | . 1 4 Average Overweight (x) . | . . . Largest Inventory Capacity 6 | 6 6 4 Average Capacity 4 | 5 4 4 Most Carried 4 | 3 4 4 Average Carried 2 | 1 2 4 Final Capacity 6 | 6 4 4 Final Carried 4 | 3 4 4 Class Distribution -------------------- 100% | Mutant Dominant Class ---------------- Mutant | -10/Materials Mutant | -10/Mines Resources | -11 -10 -10 ----------- Run | Scr Mat Min Matter Collected 493 | 210 273 10 Remotely . | . . . Salvage Created 370 | . 370 . Parts 23 | . 23 . Haulers Intercepted . | . . . Recyclers Shooed . | . . . Parts Field Recycled . | . . . Retrieved Matter . | . . . Parts Self-Destructed . | . . . Prevented . | . . . Kills | -11 -10 -10 ------- Run | Scr Mat Min Combat Hostiles Destroyed 13 | . 13 . Guns 8 | . 8 . AOE 5 | . 5 . Classes Destroyed 2 | . 2 . Swarmer 3 | . 3 . Grunt 10 | . 10 . Best Kill Streak 5 | . 5 . Combat Bots Only 5 | . 5 . Max Kills in Single Turn 2 | . 2 . Gunslinging . | . . . Exploded 2 | . 2 . Melee . | . . . Uniques/NPCs Destroyed . | . . . Combat | -11 -10 -10 -------- Run | Scr Mat Min Damage Taken 1161 | . 917 244 Core 263 | . 196 67 Absorbed by Shields . | . . . Core Remaining (%) 100 | 100 . . Volleys Fired 35 | . 35 . Largest 2 | . 2 . Hottest 60 | . 60 . Shots Fired 69 | . 69 . Gun 63 | . 63 . Cannon . | . . . Launcher 6 | . 6 . Special . | . . . Kinetic 58 | . 58 . Thermal . | . . . Explosive 6 | . 6 . Electromagnetic 5 | . 5 . Robot Hit Streak 20 | . 20 . Robot Miss Streak 2 | . 2 . Penetration Max . | . . . Secondary Targets . | . . . Shots Hit Robots 54 | . 54 . Core Hits 26 | . 26 . Critical Hits 1 | . 1 . Critical Kills . | . . . Critical Parts Destroyed 1 | . 1 . Melee Attacks . | . . . Impact . | . . . Slashing . | . . . Piercing . | . . . Sneak Attacks . | . . . Combat Hostiles . | . . . Follow-up Attacks . | . . . Damage Inflicted 1039 | . 1039 . Guns 664 | . 664 . Cannons . | . . . Explosions 373 | . 373 . Melee . | . . . Ramming 2 | . 2 . Kinetic 609 | . 609 . Thermal . | . . . Explosive 373 | . 373 . Electromagnetic 55 | . 55 . Impact . | . . . Slashing . | . . . Piercing . | . . . Highest Corruption 1 | . 1 1 Average Corruption 1 | . 1 1 Corruption Purged . | . . . Effects 6 | . 5 1 Message Errors 2 | . 2 . Energy Discharges 2 | . 1 1 Data Loss (minor) 2 | . 2 . Overload Shots . | . . . Overflow Damage . | . . . Projectiles . | . . . Explosions . | . . . Melee . | . . . Knockbacks . | . . . Impact . | . . . Kinetic . | . . . Secondary . | . . . Self-Inflicted Damage 68 | . 68 . Shots 3 | . 3 . Rammed . | . . . Targets Rammed 1 | . 1 . Kicked 1 | . 1 . Crushed . | . . . Highest Temperature 42 | . 42 35 Average Temperature 18 | . 19 16 Received Heat Transfer 461 | . 321 140 Siege Activations . | . . . Robots Corrupted . | . . . Combat Hostiles . | . . . Parts Fried . | . . . Impact Corruptions . | . . . Robots Melted . | . . . Combat Hostiles . | . . . Parts Melted . | . . . Heat Transferred . | . . . Parts Sabotaged . | . . . Parts Stolen . | . . . Parts Stripped . | . . . Power Chain Reactions . | . . . Missiles Intercepted . | . . . Alert | -11 -10 -10 ------- Run | Scr Mat Min Peak Influence 245 | . 245 15 Initial 3 | . . 3 Average 76 | . 92 3 Maximum Alert Level 1 | . 1 . Low Security (%) 94 | 100 93 100 Level 1 5 | . 6 . Level 2 . | . . . Level 3 . | . . . Level 4 . | . . . Level 5 . | . . . High Security . | . . . Max Security . | . . . Squads Dispatched 3 | . 3 . Investigation 2 | . 2 . Extermination . | . . . Reinforcement 1 | . 1 . Assault . | . . . Garrison . | . . . Intercept . | . . . Construction Impeded . | . . . Haulers Reinforced . | . . . Stealth | -11 -10 -10 --------- Run | Scr Mat Min Distress Signals . | . . . Communications Jammed . | . . . Distress Signals . | . . . Times Spotted 30 | . 18 12 Peak Tracking Total 11 | . 7 11 Tactical Retreats 1 | . 1 . Traps | -11 -10 -10 ------- Run | Scr Mat Min Traps Triggered 5 | . 5 . Indirectly . | . . . Trap Hack Attempts . | . . . Triggered . | . . . Disarmed . | . . . Reprogrammed . | . . . Reused . | . . . Traps Extracted . | . . . Installed . | . . . Triggered . | . . . Machines | -11 -10 -10 ---------- Run | Scr Mat Min Machines Disabled . | . . . Max in Single Turn . | . . . Machines Sabotaged . | . . . Garrisons Compromised . | . . . Overloaded Fab Kills . | . . . Fab Network Shutdowns . | . . . Hacking | -11 -10 -10 --------- Run | Scr Mat Min Machines Accessed 2 | . 2 . Terminals 1 | . 1 . Fabricators . | . . . Repair Stations . | . . . Recycling Units 1 | . 1 . Scanalyzers . | . . . Garrison Access . | . . . Total Hacks 2 | . 2 . Successful 2 | . 2 . Failed . | . . . Catastrophic . | . . . Database Lockouts . | . . . Manual . | . . . Terminals 1 | . 1 . Fabricators . | . . . Repair Stations . | . . . Recycling Units 1 | . 1 . Scanalyzers . | . . . Garrison Access . | . . . Terminal Hacks 1 | . 1 . Record 1 | . 1 . Fabricator Hacks . | . . . Repair Station Hacks . | . . . Recycling Unit Hacks 1 | . 1 . Report Inventory 1 | . 1 . Scanalyzer . | . . . Garrison Access Hacks . | . . . Unauthorized Hacks . | . . . Terminals . | . . . Fabricators . | . . . Repair Stations . | . . . Recycling Units . | . . . Scanalyzers . | . . . Garrison Access . | . . . Data Cores Recovered . | . . . Used . | . . . Hacking Detections . | . . . Full Trace Events . | . . . Feedback Events . | . . . Feedback Blocked . | . . . Robot Schematics Acquired . | . . . Robots Built . | . . . Matter . | . . . Time . | . . . Total Robot Build Rating . | . . . Part Schematics Acquired . | . . . Parts Built . | . . . Matter . | . . . Time . | . . . Total Part Build Rating . | . . . Parts Repaired . | . . . Time . | . . . Parts Recycled . | . . . Recycled Matter . | . . . Retrieved Matter . | . . . Retrieved Components . | . . . Parts Scanalyzed . | . . . Part Schematics Acquired . | . . . Parts Damaged . | . . . Bothacking | -11 -10 -10 ------------ Run | Scr Mat Min Used RIF Installer . | . . . Robots Hacked . | . . . Non-combat . | . . . Combat . | . . . Robot Hacks Applied . | . . . Relay Couplers Released . | . . . Robots Rewired . | . . . Allies Hacked . | . . . Hacks Repelled . | . . . Allies | -11 -10 -10 -------- Run | Scr Mat Min Total Allies . | . . . Largest Group . | . . . Highest-Rated Group . | . . . Highest-Rated Ally . | . . . Total Orders . | . . . Ally Attacks . | . . . Total Damage . | . . . Kills . | . . . Allies Corrupted . | . . . Allies Melted 1 | . . 1 Intel | -11 -10 -10 ------- Run | Scr Mat Min Robot Analysis Total . | . . . Derelict Logs Recovered . | . . . Drone Launches . | . . . Drone Recoveries . | . . . Exploration | -11 -10 -10 ------------- Run | Scr Mat Min Turns Passed 1000 | 74 824 102 Spaces Moved 619 | 54 484 81 Core 6 | 4 . 2 Treads . | . . . Legs 389 | 50 339 . Wheels . | . . . Hover 224 | . 145 79 Flight . | . . . Fastest Speed 50 | 50 120 60 Average Speed 118 | 114 120 114 Slowest Speed 250 | 120 120 250 Overloaded Moves . | . . . Propulsion Burnouts . | . . . Robots Hopped . | . . . Cave-ins Triggered . | . . . Exploration Rate (%) 34 | 3 78 21 Regions Visited 2 Branch Regions 1 Pre-discovered Areas . | . . . Known Exits Taken 1 | . 1 . Unknown Exits Taken 1 | 1 . . Scrap Searched . | . . . Spaces Dug . | . . . Terrain Destroyed 34 | . 34 . Melee . | . . . Projectile . | . . . AOE 34 | . 34 . Terrain Rammed . | . . . Walls Destroyed . | . . . Machines Disabled . | . . . Actions | -11 -10 -10 --------- Run | Scr Mat Min Total 819 | 66 663 90 Wait 110 | . 102 8 Move 617 | 53 483 81 Hop . | . . . Pick Up 23 | 8 15 . Fast Attach 1 | . . 1 Attach 21 | 5 16 . Detach 2 | . 2 . Swap 1 | . 1 . Drop 8 | . 8 . Fire 35 | . 35 . Melee . | . . . Ram . | . . . Kick 1 | . 1 . Crush . | . . . Escape Stasis . | . . . Rewire . | . . . Trap . | . . . Miscellaneous . | . . . Route ------- -11/Scrapyard -10/Materials (discovered 2 exits: [*Mat] / *Min) -10/Mines History --------- Turn | Location | Event 5 | -11/Scrapyard | Discovered new exit (range 16) 75 | -11/Scrapyard | Entered Materials 300 | -10/Materials | Build established: Mutant 578 | -10/Materials | Core integrity fell below 50% 741 | -10/Materials | Discovered new exit (range 3) 879 | -10/Materials | Discovered new exit (range 8) 896 | -10/Materials | Identified exit to Mines 899 | -10/Materials | Entered Mines 925 | -10/Mines | Met a Derelict bent on vengeance 954 | -10/Mines | Assembled infested the area 959 | -10/Mines | Assisted by a Guerilla fighting off Assembled 996 | -10/Mines | Core integrity fell below 20% 1001 | -10/Mines | Destroyed by as-74732 with Assembled Heavy Rifle Last Messages --------------- GOAL=ESCAPE Something is scanning the area. 00900_ A derelict wanders into view. 00925_ GS-THV(g): "UNAWARE KILLED MY BEST FRIEND! VENGEANCE!" 00932_ GS-THV(g): "WHERE ARE YOU, UNAWARE TRASH?! VENGEANCE UPON YOU!" 00954_ ALERT: Infestation in the mines, dispatching Demolisher response squad. 00959_ A derelict emerges from the shadows: "You need to get out of here! I've been tracking a group of Assembled to figure out where they're coming from, and they're closing on this area, come on!" 00979_ GS-THV(g) destroyed. 00987_ Grenade Launcher destroyed. 00989_ System corrupted: Energy discharge (-22). 00995_ Hover Unit destroyed. 00995_ Acquired Bore Cannon. 00999_ Acquired 10 matter. 00999_ Knocked back. 00999_ as-81720 destroyed. 00999_ as-66185 destroyed. 01001_ Hvy. Assault Rifle destroyed. Map ----- +----------------------------------------------------+ | ???????????????# #### #??## #???????????????? | | ???????????????# ##??####%"#???????????????? | | ???????????????##### ##??###%= #??????????????? | | ??????????????????## #??# *!! ??????????????? | | ????????# ### #??# ! ! ??????????????? | | ????????# ##?## = ??????????????? | | ???????# """ ##??# % ??####????????? | | ???????????""" ### ##????# #### ##?###???? | | ???????????""" ??####?????# # ## ##??? | | ?????????? ????????????# ##?? | | ????????? ?????????????# #?? | | ????????? ##??????????????## #?? | | ????????? ??????????????????## #?? | | ??????????????????????????????## #?? | | ??????????????????????????????## ##?? | | ????????????????????????????### ##??? | | ???????????????????????????## ### #???? | | ???????????????????????????# [ ##?# #???? | | ???????????????????????????# ### #?# #???? | | ???????????????????????????##dd##?## #?## ##???? | | ???????????????????????????## #???## #???##????? | | ??????????????????????????## #????####?????????? | | ???????????????????????### ##?????????????????? | | ??????????????????????## #??????????????????? | | ??????????????????????# % ##???????????????????? | | ??????????????????????# @a #????????????????????? | | ??????????????????????# a #????????????????????? | | ??????????????????????# a #????????????????????? | | ??????????????????????## a #????????????????????? | | ???????????????????????## aa#????????????????????? | | ????????????????????????# a ????????????????????? | | ????????????????????????# a???????????????????? | | ????????????????????????# ???????????????????? | | ???????????????????????? ??????????????????? | | ???????????????????????? ?????????????????? | | ???????????????????????? ! ????????????????? | | ???????????????????????? ##????????????????? | | ???????????????????????? ##?????????????????? | | ???????????????????????? ##??????????????????? | | ???????????????????????? ####???????????????????? | | ???????????????????????? ???????????????????????? | | ???????????????????????? ???????????????????????? | | ?????????????????????????????????????????????????? | | ?????????????????????????????????????????????????? | | ?????????????????????????????????????????????????? | | ?????????????????????????????????????????????????? | | ?????????????????????????????????????????????????? | | ?????????????????????????????????????????????????? | | ?????????????????????????????????????????????????? | | ?????????????????????????????????????????????????? | +----------------------------------------------------+ Best States ------------- Heat Dissipation 25 Energy Generation 10 Energy Capacity 250 Matter Stores 300 Matter Capacity 300 Sight Range 16 Terrain Scan Density 10 Evasion (%) 53 Item Schematics ----------------- None Robot Schematics ------------------ None Fabricated ------------ Nothing Alien Tech Used ----------------- None Achievements -------------- None Challenges ------------ None Game ------ Seed MiningCentriumMatter Manual? 0 Play Time 00:21:10 Cumulative 24.2 hours Start 2020.11.08 @ 07:29:52 End 2020.11.08 @ 09:19:34 Sessions 1 Manual Loads 0 Difficulty Rogue Special Mode Halloween2020/ForbiddenLore Game No. 31 Rogue 23 Adventurer 0 Explorer 8 Win Type - Total 0 Types 0/0/0/0/0/0/0/0/0 Lore% 12 Gallery% 26 Achievement% 15 Wizard Run 0 Options --------- ASCII 0 Keyboard 0 Movement Mouse Keybinds 0 Fullscreen 2 Font 18/SmallcapsGlow Map View 76x50 Tactical HUD 1 Map Filters NONE Filters NONE Steam 1 RUN: 9d27f7cf-2096-4748-bc3f-fda68e904829